{"text_format":"3","workbook":"xlsx","n_sheets":1,"sheets":["Peļņas un zaudējumu pārskats"],"not_rendered":{"defined_names":2},"read":"whole","date_system":"1900"}

{"sheet":"Peļņas un zaudējumu pārskats","index":0,"n_rows":60,"n_cols":10,"rows_kept":60,"merged":[[9,1,9,9],[16,1,16,9],[24,1,24,9],[38,1,38,9],[43,1,43,9],[56,1,56,9]]}
[null,"Peļņa un zaudējumi Pārskats"]
[]
[{"$nulls":3},"IEPRIEKŠĒJAIS PERIODS ","BUDŽETS ","PAŠREIZĒJAIS PERIODS ",null,"PAŠREIZĒJAIS PERIODS:\n% NO PĀRDOŠANAS ","% IZMAIŅAS NO\nIEPRIEKŠĒJĀ PERIODA ","% IZMAIŅAS\nNO BUDŽETA "]
[null,"Ienākumi no pārdošanas"]
[null,"Produkts/pakalpojums 1",null,40,50,45,null,{"$f":"IFERROR(IenākumiNoPārdošanas[[#This Row],[Current Period]]/SUBTOTAL(109,IenākumiNoPārdošanas[Current Period]),0)","v":{"v":1,"d":"100.0%"}},{"$f":"IFERROR(IenākumiNoPārdošanas[[#This Row],[Current Period]]/IenākumiNoPārdošanas[[#This Row],[Iepriekšējais periods]]-1,0)","v":{"v":0.125,"d":"12.5%"}},{"$f":"IFERROR(IenākumiNoPārdošanas[[#This Row],[Current Period]]/IenākumiNoPārdošanas[[#This Row],[Budžets]]-1,0)","v":{"v":-0.09999999999999998,"d":"-10.0%"}}]
[null,"Produkts/pakalpojums 2",{"$nulls":5},{"$f":"IFERROR(IenākumiNoPārdošanas[[#This Row],[Current Period]]/SUBTOTAL(109,IenākumiNoPārdošanas[Current Period]),0)","v":0},{"$f":"IFERROR(IenākumiNoPārdošanas[[#This Row],[Current Period]]/IenākumiNoPārdošanas[[#This Row],[Iepriekšējais periods]]-1,0)","v":0},{"$f":"IFERROR(IenākumiNoPārdošanas[[#This Row],[Current Period]]/IenākumiNoPārdošanas[[#This Row],[Budžets]]-1,0)","v":0}]
[null,"Produkts/pakalpojums 3",{"$nulls":5},{"$f":"IFERROR(IenākumiNoPārdošanas[[#This Row],[Current Period]]/SUBTOTAL(109,IenākumiNoPārdošanas[Current Period]),0)","v":0},{"$f":"IFERROR(IenākumiNoPārdošanas[[#This Row],[Current Period]]/IenākumiNoPārdošanas[[#This Row],[Iepriekšējais periods]]-1,0)","v":0},{"$f":"IFERROR(IenākumiNoPārdošanas[[#This Row],[Current Period]]/IenākumiNoPārdošanas[[#This Row],[Budžets]]-1,0)","v":0}]
[null,"Produkts/pakalpojums 4",{"$nulls":5},{"$f":"IFERROR(IenākumiNoPārdošanas[[#This Row],[Current Period]]/SUBTOTAL(109,IenākumiNoPārdošanas[Current Period]),0)","v":0},{"$f":"IFERROR(IenākumiNoPārdošanas[[#This Row],[Current Period]]/IenākumiNoPārdošanas[[#This Row],[Iepriekšējais periods]]-1,0)","v":0},{"$f":"IFERROR(IenākumiNoPārdošanas[[#This Row],[Current Period]]/IenākumiNoPārdošanas[[#This Row],[Budžets]]-1,0)","v":0}]
[null,"Kopā",null,{"$f":"SUBTOTAL(109,IenākumiNoPārdošanas[Iepriekšējais periods])","v":40},{"$f":"SUBTOTAL(109,IenākumiNoPārdošanas[Budžets])","v":50},{"$f":"SUBTOTAL(109,IenākumiNoPārdošanas[Current Period])","v":45},null,{"$f":"IFERROR(IenākumiNoPārdošanas[[#Totals],[Current Period]]/IenākumiNoPārdošanas[[#Totals],[Current Period]],0)","v":{"v":1,"d":"100.0%"}},{"$f":"IFERROR(IenākumiNoPārdošanas[[#Totals],[Current Period]]/IenākumiNoPārdošanas[[#Totals],[Iepriekšējais periods]]-1,0)","v":{"v":0.125,"d":"12.5%"}},{"$f":"IFERROR(IenākumiNoPārdošanas[[#Totals],[Current Period]]/IenākumiNoPārdošanas[[#Totals],[Budžets]]-1,0)","v":{"v":-0.09999999999999998,"d":"-10.0%"}}]
[]
[null,"Pārdošanas izmaksas"]
[null,"Produkts/pakalpojums 1",null,null,2,3,null,{"$f":"IFERROR(PārdošanasIzmaksas[[#This Row],[Current Period]]/SUBTOTAL(109,IenākumiNoPārdošanas[Current Period]),0)","v":{"v":0.06666666666666667,"d":"6.7%"}},{"$f":"IFERROR(PārdošanasIzmaksas[[#This Row],[Current Period]]/PārdošanasIzmaksas[[#This Row],[Iepriekšējais periods]]-1,0)","v":0},{"$f":"IFERROR(PārdošanasIzmaksas[[#This Row],[Current Period]]/PārdošanasIzmaksas[[#This Row],[Budžets]]-1,0)","v":{"v":0.5,"d":"50.0%"}}]
[null,"Produkts/pakalpojums 2",null,null,5,3,null,{"$f":"IFERROR(PārdošanasIzmaksas[[#This Row],[Current Period]]/SUBTOTAL(109,IenākumiNoPārdošanas[Current Period]),0)","v":{"v":0.06666666666666667,"d":"6.7%"}},{"$f":"IFERROR(PārdošanasIzmaksas[[#This Row],[Current Period]]/PārdošanasIzmaksas[[#This Row],[Iepriekšējais periods]]-1,0)","v":0},{"$f":"IFERROR(PārdošanasIzmaksas[[#This Row],[Current Period]]/PārdošanasIzmaksas[[#This Row],[Budžets]]-1,0)","v":{"v":-0.4,"d":"-40.0%"}}]
[null,"Produkts/pakalpojums 3",{"$nulls":3},1,null,{"$f":"IFERROR(PārdošanasIzmaksas[[#This Row],[Current Period]]/SUBTOTAL(109,IenākumiNoPārdošanas[Current Period]),0)","v":{"v":0.022222222222222223,"d":"2.2%"}},{"$f":"IFERROR(PārdošanasIzmaksas[[#This Row],[Current Period]]/PārdošanasIzmaksas[[#This Row],[Iepriekšējais periods]]-1,0)","v":0},{"$f":"IFERROR(PārdošanasIzmaksas[[#This Row],[Current Period]]/PārdošanasIzmaksas[[#This Row],[Budžets]]-1,0)","v":0}]
[null,"Produkts/pakalpojums 4",{"$nulls":5},{"$f":"IFERROR(PārdošanasIzmaksas[[#This Row],[Current Period]]/SUBTOTAL(109,IenākumiNoPārdošanas[Current Period]),0)","v":0},{"$f":"IFERROR(PārdošanasIzmaksas[[#This Row],[Current Period]]/PārdošanasIzmaksas[[#This Row],[Iepriekšējais periods]]-1,0)","v":0},{"$f":"IFERROR(PārdošanasIzmaksas[[#This Row],[Current Period]]/PārdošanasIzmaksas[[#This Row],[Budžets]]-1,0)","v":0}]
[null,"Kopā",null,{"$f":"SUBTOTAL(109,PārdošanasIzmaksas[Iepriekšējais periods])","v":0},{"$f":"SUBTOTAL(109,PārdošanasIzmaksas[Budžets])","v":7},{"$f":"SUBTOTAL(109,PārdošanasIzmaksas[Current Period])","v":7},null,{"$f":"IFERROR(PārdošanasIzmaksas[[#Totals],[Current Period]]/SUBTOTAL(109,IenākumiNoPārdošanas[Current Period]),0)","v":{"v":0.15555555555555556,"d":"15.6%"}},{"$f":"IFERROR(PārdošanasIzmaksas[[#Totals],[Current Period]]/PārdošanasIzmaksas[[#Totals],[Iepriekšējais periods]]-1,0)","v":0},{"$f":"IFERROR(PārdošanasIzmaksas[[#Totals],[Current Period]]/PārdošanasIzmaksas[[#Totals],[Budžets]]-1,0)","v":0}]
[]
[null,"Bruto peļņa",null,{"$f":"SUM(IenākumiNoPārdošanas[Iepriekšējais periods])-SUM(PārdošanasIzmaksas[Iepriekšējais periods])","v":40},{"$f":"SUM(IenākumiNoPārdošanas[Budžets])-SUM(PārdošanasIzmaksas[Budžets])","v":43},{"$f":"SUM(IenākumiNoPārdošanas[Current Period])-SUM(PārdošanasIzmaksas[Current Period])","v":38},null,{"$f":"IFERROR(F18/SUBTOTAL(109,IenākumiNoPārdošanas[Current Period]),0)","v":{"v":0.8444444444444444,"d":"84.4%"}},{"$f":"IFERROR(F18/D18-1,0)","v":{"v":-0.050000000000000044,"d":"-5.0%"}},{"$f":"IFERROR(F18/E18-1,0)","v":{"v":-0.11627906976744184,"d":"-11.6%"}}]
[]
[null,"Ekspluatācijas izmaksas: pārdošana un mārketings"]
[null,"Reklamēšana",null,null,22,19,null,{"$f":"IFERROR(PārdošanaUnMārketings[[#This Row],[Current Period]]/SUBTOTAL(109,IenākumiNoPārdošanas[Current Period]),0)","v":{"v":0.4222222222222222,"d":"42.2%"}},{"$f":"IFERROR(PārdošanaUnMārketings[[#This Row],[Current Period]]/PārdošanaUnMārketings[[#This Row],[Iepriekšējais periods]]-1,0)","v":0},{"$f":"IFERROR(PārdošanaUnMārketings[[#This Row],[Current Period]]/PārdošanaUnMārketings[[#This Row],[Budžets]]-1,0)","v":{"v":-0.13636363636363635,"d":"-13.6%"}}]
[null,"Tiešais mārketings",{"$nulls":5},{"$f":"IFERROR(PārdošanaUnMārketings[[#This Row],[Current Period]]/SUBTOTAL(109,IenākumiNoPārdošanas[Current Period]),0)","v":0},{"$f":"IFERROR(PārdošanaUnMārketings[[#This Row],[Current Period]]/PārdošanaUnMārketings[[#This Row],[Iepriekšējais periods]]-1,0)","v":0},{"$f":"IFERROR(PārdošanaUnMārketings[[#This Row],[Current Period]]/PārdošanaUnMārketings[[#This Row],[Budžets]]-1,0)","v":0}]
[null,"Citi izdevumi (norādīt)",{"$nulls":5},{"$f":"IFERROR(PārdošanaUnMārketings[[#This Row],[Current Period]]/SUBTOTAL(109,IenākumiNoPārdošanas[Current Period]),0)","v":0},{"$f":"IFERROR(PārdošanaUnMārketings[[#This Row],[Current Period]]/PārdošanaUnMārketings[[#This Row],[Iepriekšējais periods]]-1,0)","v":0},{"$f":"IFERROR(PārdošanaUnMārketings[[#This Row],[Current Period]]/PārdošanaUnMārketings[[#This Row],[Budžets]]-1,0)","v":0}]
[null,"Kopā",null,{"$f":"SUBTOTAL(109,PārdošanaUnMārketings[Iepriekšējais periods])","v":0},{"$f":"SUBTOTAL(109,PārdošanaUnMārketings[Budžets])","v":22},{"$f":"SUBTOTAL(109,PārdošanaUnMārketings[Current Period])","v":19},null,{"$f":"IFERROR(PārdošanaUnMārketings[[#Totals],[Current Period]]/SUBTOTAL(109,IenākumiNoPārdošanas[Current Period]),0)","v":{"v":0.4222222222222222,"d":"42.2%"}},{"$f":"IFERROR(PārdošanaUnMārketings[[#Totals],[Current Period]]/PārdošanaUnMārketings[[#Totals],[Iepriekšējais periods]]-1,0)","v":0},{"$f":"IFERROR(PārdošanaUnMārketings[[#Totals],[Current Period]]/PārdošanaUnMārketings[[#Totals],[Budžets]]-1,0)","v":{"v":-0.13636363636363635,"d":"-13.6%"}}]
[]
[null,"Ekspluatācijas izmaksas: vispārīgi un administrācijas"]
[null,"Algas un darba samaksa",null,null,56,51,null,{"$f":"IFERROR(VispārīgiUnAdministrācijas[[#This Row],[Current Period]]/SUBTOTAL(109,IenākumiNoPārdošanas[Current Period]),0)","v":{"v":1.1333333333333333,"d":"113.3%"}},{"$f":"IFERROR(VispārīgiUnAdministrācijas[[#This Row],[Current Period]]/VispārīgiUnAdministrācijas[[#This Row],[Iepriekšējais periods]]-1,0)","v":0},{"$f":"IFERROR(VispārīgiUnAdministrācijas[[#This Row],[Current Period]]/VispārīgiUnAdministrācijas[[#This Row],[Budžets]]-1,0)","v":{"v":-0.0892857142857143,"d":"-8.9%"}}]
[null,"Ārpakalpojumi",{"$nulls":5},{"$f":"IFERROR(VispārīgiUnAdministrācijas[[#This Row],[Current Period]]/SUBTOTAL(109,IenākumiNoPārdošanas[Current Period]),0)","v":0},{"$f":"IFERROR(VispārīgiUnAdministrācijas[[#This Row],[Current Period]]/VispārīgiUnAdministrācijas[[#This Row],[Iepriekšējais periods]]-1,0)","v":0},{"$f":"IFERROR(VispārīgiUnAdministrācijas[[#This Row],[Current Period]]/VispārīgiUnAdministrācijas[[#This Row],[Budžets]]-1,0)","v":0}]
[null,"Krājumi",{"$nulls":5},{"$f":"IFERROR(VispārīgiUnAdministrācijas[[#This Row],[Current Period]]/SUBTOTAL(109,IenākumiNoPārdošanas[Current Period]),0)","v":0},{"$f":"IFERROR(VispārīgiUnAdministrācijas[[#This Row],[Current Period]]/VispārīgiUnAdministrācijas[[#This Row],[Iepriekšējais periods]]-1,0)","v":0},{"$f":"IFERROR(VispārīgiUnAdministrācijas[[#This Row],[Current Period]]/VispārīgiUnAdministrācijas[[#This Row],[Budžets]]-1,0)","v":0}]
[null,"Ēdiens un izklaide",{"$nulls":5},{"$f":"IFERROR(VispārīgiUnAdministrācijas[[#This Row],[Current Period]]/SUBTOTAL(109,IenākumiNoPārdošanas[Current Period]),0)","v":0},{"$f":"IFERROR(VispārīgiUnAdministrācijas[[#This Row],[Current Period]]/VispārīgiUnAdministrācijas[[#This Row],[Iepriekšējais periods]]-1,0)","v":0},{"$f":"IFERROR(VispārīgiUnAdministrācijas[[#This Row],[Current Period]]/VispārīgiUnAdministrācijas[[#This Row],[Budžets]]-1,0)","v":0}]
[null,"Īre",{"$nulls":5},{"$f":"IFERROR(VispārīgiUnAdministrācijas[[#This Row],[Current Period]]/SUBTOTAL(109,IenākumiNoPārdošanas[Current Period]),0)","v":0},{"$f":"IFERROR(VispārīgiUnAdministrācijas[[#This Row],[Current Period]]/VispārīgiUnAdministrācijas[[#This Row],[Iepriekšējais periods]]-1,0)","v":0},{"$f":"IFERROR(VispārīgiUnAdministrācijas[[#This Row],[Current Period]]/VispārīgiUnAdministrācijas[[#This Row],[Budžets]]-1,0)","v":0}]
[null,"Tālrunis",{"$nulls":5},{"$f":"IFERROR(VispārīgiUnAdministrācijas[[#This Row],[Current Period]]/SUBTOTAL(109,IenākumiNoPārdošanas[Current Period]),0)","v":0},{"$f":"IFERROR(VispārīgiUnAdministrācijas[[#This Row],[Current Period]]/VispārīgiUnAdministrācijas[[#This Row],[Iepriekšējais periods]]-1,0)","v":0},{"$f":"IFERROR(VispārīgiUnAdministrācijas[[#This Row],[Current Period]]/VispārīgiUnAdministrācijas[[#This Row],[Budžets]]-1,0)","v":0}]
[null,"Aprīkojums",{"$nulls":5},{"$f":"IFERROR(VispārīgiUnAdministrācijas[[#This Row],[Current Period]]/SUBTOTAL(109,IenākumiNoPārdošanas[Current Period]),0)","v":0},{"$f":"IFERROR(VispārīgiUnAdministrācijas[[#This Row],[Current Period]]/VispārīgiUnAdministrācijas[[#This Row],[Iepriekšējais periods]]-1,0)","v":0},{"$f":"IFERROR(VispārīgiUnAdministrācijas[[#This Row],[Current Period]]/VispārīgiUnAdministrācijas[[#This Row],[Budžets]]-1,0)","v":0}]
[null,"Amortizācija",{"$nulls":5},{"$f":"IFERROR(VispārīgiUnAdministrācijas[[#This Row],[Current Period]]/SUBTOTAL(109,IenākumiNoPārdošanas[Current Period]),0)","v":0},{"$f":"IFERROR(VispārīgiUnAdministrācijas[[#This Row],[Current Period]]/VispārīgiUnAdministrācijas[[#This Row],[Iepriekšējais periods]]-1,0)","v":0},{"$f":"IFERROR(VispārīgiUnAdministrācijas[[#This Row],[Current Period]]/VispārīgiUnAdministrācijas[[#This Row],[Budžets]]-1,0)","v":0}]
[null,"Apdrošināšana",{"$nulls":5},{"$f":"IFERROR(VispārīgiUnAdministrācijas[[#This Row],[Current Period]]/SUBTOTAL(109,IenākumiNoPārdošanas[Current Period]),0)","v":0},{"$f":"IFERROR(VispārīgiUnAdministrācijas[[#This Row],[Current Period]]/VispārīgiUnAdministrācijas[[#This Row],[Iepriekšējais periods]]-1,0)","v":0},{"$f":"IFERROR(VispārīgiUnAdministrācijas[[#This Row],[Current Period]]/VispārīgiUnAdministrācijas[[#This Row],[Budžets]]-1,0)","v":0}]
[null,"Remonts un apkope",{"$nulls":5},{"$f":"IFERROR(VispārīgiUnAdministrācijas[[#This Row],[Current Period]]/SUBTOTAL(109,IenākumiNoPārdošanas[Current Period]),0)","v":0},{"$f":"IFERROR(VispārīgiUnAdministrācijas[[#This Row],[Current Period]]/VispārīgiUnAdministrācijas[[#This Row],[Iepriekšējais periods]]-1,0)","v":0},{"$f":"IFERROR(VispārīgiUnAdministrācijas[[#This Row],[Current Period]]/VispārīgiUnAdministrācijas[[#This Row],[Budžets]]-1,0)","v":0}]
[null,"Citi izdevumi (norādīt)",{"$nulls":5},{"$f":"IFERROR(VispārīgiUnAdministrācijas[[#This Row],[Current Period]]/SUBTOTAL(109,IenākumiNoPārdošanas[Current Period]),0)","v":0},{"$f":"IFERROR(VispārīgiUnAdministrācijas[[#This Row],[Current Period]]/VispārīgiUnAdministrācijas[[#This Row],[Iepriekšējais periods]]-1,0)","v":0},{"$f":"IFERROR(VispārīgiUnAdministrācijas[[#This Row],[Current Period]]/VispārīgiUnAdministrācijas[[#This Row],[Budžets]]-1,0)","v":0}]
[null,"Kopā",null,{"$f":"SUBTOTAL(109,VispārīgiUnAdministrācijas[Iepriekšējais periods])","v":0},{"$f":"SUBTOTAL(109,VispārīgiUnAdministrācijas[Budžets])","v":56},{"$f":"SUBTOTAL(109,VispārīgiUnAdministrācijas[Current Period])","v":51},null,{"$f":"IFERROR(VispārīgiUnAdministrācijas[[#Totals],[Current Period]]/SUBTOTAL(109,IenākumiNoPārdošanas[Current Period]),0)","v":{"v":1.1333333333333333,"d":"113.3%"}},{"$f":"IFERROR(VispārīgiUnAdministrācijas[[#Totals],[Current Period]]/VispārīgiUnAdministrācijas[[#Totals],[Iepriekšējais periods]]-1,0)","v":0},{"$f":"IFERROR(VispārīgiUnAdministrācijas[[#Totals],[Current Period]]/VispārīgiUnAdministrācijas[[#Totals],[Budžets]]-1,0)","v":{"v":-0.0892857142857143,"d":"-8.9%"}}]
[]
[null,"Ekspluatācijas izmaksas: cits"]
[null,"Citi ekspluatācijas izdevumi 1",null,null,10,null,null,{"$f":"IFERROR(CituEkspluatācijasIzdevumuKategorija[[#This Row],[Current Period]]/SUBTOTAL(109,IenākumiNoPārdošanas[Current Period]),0)","v":0},{"$f":"IFERROR(CituEkspluatācijasIzdevumuKategorija[[#This Row],[Current Period]]/CituEkspluatācijasIzdevumuKategorija[[#This Row],[Iepriekšējais periods]]-1,0)","v":0},{"$f":"IFERROR(CituEkspluatācijasIzdevumuKategorija[[#This Row],[Current Period]]/CituEkspluatācijasIzdevumuKategorija[[#This Row],[Budžets]]-1,0)","v":{"v":-1,"d":"-100.0%"}}]
[null,"Citi ekspluatācijas izdevumi 2",{"$nulls":5},{"$f":"IFERROR(CituEkspluatācijasIzdevumuKategorija[[#This Row],[Current Period]]/SUBTOTAL(109,IenākumiNoPārdošanas[Current Period]),0)","v":0},{"$f":"IFERROR(CituEkspluatācijasIzdevumuKategorija[[#This Row],[Current Period]]/CituEkspluatācijasIzdevumuKategorija[[#This Row],[Iepriekšējais periods]]-1,0)","v":0},{"$f":"IFERROR(CituEkspluatācijasIzdevumuKategorija[[#This Row],[Current Period]]/CituEkspluatācijasIzdevumuKategorija[[#This Row],[Budžets]]-1,0)","v":0}]
[null,"Kopā",null,{"$f":"SUBTOTAL(109,CituEkspluatācijasIzdevumuKategorija[Iepriekšējais periods])","v":0},{"$f":"SUBTOTAL(109,CituEkspluatācijasIzdevumuKategorija[Budžets])","v":10},{"$f":"SUBTOTAL(109,CituEkspluatācijasIzdevumuKategorija[Current Period])","v":0},null,{"$f":"IFERROR(CituEkspluatācijasIzdevumuKategorija[[#Totals],[Current Period]]/SUBTOTAL(109,IenākumiNoPārdošanas[Current Period]),0)","v":0},{"$f":"IFERROR(CituEkspluatācijasIzdevumuKategorija[[#Totals],[Current Period]]/CituEkspluatācijasIzdevumuKategorija[[#Totals],[Iepriekšējais periods]]-1,0)","v":0},{"$f":"IFERROR(CituEkspluatācijasIzdevumuKategorija[[#Totals],[Current Period]]/CituEkspluatācijasIzdevumuKategorija[[#Totals],[Budžets]]-1,0)","v":{"v":-1,"d":"-100.0%"}}]
[]
[null,"Kopējie ekspluatācijas izdevumi",null,{"$f":"SUM(PārdošanaUnMārketings[Iepriekšējais periods],VispārīgiUnAdministrācijas[Iepriekšējais periods],CituEkspluatācijasIzdevumuKategorija[Iepriekšējais periods])","v":0},{"$f":"SUM(PārdošanaUnMārketings[Budžets],VispārīgiUnAdministrācijas[Budžets],CituEkspluatācijasIzdevumuKategorija[Budžets])","v":88},{"$f":"SUM(PārdošanaUnMārketings[Current Period],VispārīgiUnAdministrācijas[Current Period],CituEkspluatācijasIzdevumuKategorija[Current Period])","v":70},null,{"$f":"IFERROR(F45/SUBTOTAL(109,IenākumiNoPārdošanas[Current Period]),0)","v":{"v":1.5555555555555556,"d":"155.6%"}},{"$f":"IFERROR(F45/D45-1,0)","v":0},{"$f":"IFERROR(F45/E45-1,0)","v":{"v":-0.20454545454545459,"d":"-20.5%"}}]
[]
[null,"Ienākumi no operācijām",null,{"$f":"D18-D45","v":40},{"$f":"E18-E45","v":-45},{"$f":"F18-F45","v":-32},null,{"$f":"IFERROR(F47/SUBTOTAL(109,IenākumiNoPārdošanas[Current Period]),0)","v":{"v":-0.7111111111111111,"d":"-71.1%"}},{"$f":"IFERROR(IF(D47=F47,0,IF(F47>D47,ABS((F47/D47)-1),IF(AND(F47<D47,D47<0),-((F47/D47)-1),(F47/D47)-1))),0)","v":{"v":-1.8,"d":"-180.0%"}},{"$f":"IFERROR(IF(E47=F47,0,IF(F47>E47,ABS((F47/E47)-1),IF(AND(F47<E47,E47<0),-((F47/E47)-1),(F47/E47)-1))),0)","v":{"v":0.28888888888888886,"d":"28.9%"}}]
[]
[null,"Citi ienākumi",{"$nulls":5},{"$f":"IFERROR(F49/SUBTOTAL(109,IenākumiNoPārdošanas[Current Period]),0)","v":0},{"$f":"IFERROR(F49/D49-1,0)","v":0},{"$f":"IFERROR(F49/E49-1,0)","v":0}]
[]
[null,"Nodokļi"]
[null,"Ienākumu nodoklis",null,null,32,30,null,{"$f":"IFERROR(Nodokļi[[#This Row],[Current Period]]/SUBTOTAL(109,IenākumiNoPārdošanas[Current Period]),0)","v":{"v":0.6666666666666666,"d":"66.7%"}},{"$f":"IFERROR(Nodokļi[[#This Row],[Current Period]]/Nodokļi[[#This Row],[Iepriekšējais periods]]-1,0)","v":0},{"$f":"IFERROR(Nodokļi[[#This Row],[Current Period]]/Nodokļi[[#This Row],[Budžets]]-1,0)","v":{"v":-0.0625,"d":"-6.3%"}}]
[null,"Algas nodoklis",{"$nulls":5},{"$f":"IFERROR(Nodokļi[[#This Row],[Current Period]]/SUBTOTAL(109,IenākumiNoPārdošanas[Current Period]),0)","v":0},{"$f":"IFERROR(Nodokļi[[#This Row],[Current Period]]/Nodokļi[[#This Row],[Iepriekšējais periods]]-1,0)","v":0},{"$f":"IFERROR(Nodokļi[[#This Row],[Current Period]]/Nodokļi[[#This Row],[Budžets]]-1,0)","v":0}]
[null,"Nekustamā īpašuma nodoklis",{"$nulls":5},{"$f":"IFERROR(Nodokļi[[#This Row],[Current Period]]/SUBTOTAL(109,IenākumiNoPārdošanas[Current Period]),0)","v":0},{"$f":"IFERROR(Nodokļi[[#This Row],[Current Period]]/Nodokļi[[#This Row],[Iepriekšējais periods]]-1,0)","v":0},{"$f":"IFERROR(Nodokļi[[#This Row],[Current Period]]/Nodokļi[[#This Row],[Budžets]]-1,0)","v":0}]
[null,"Citi nodokļi (norādīt)",{"$nulls":5},{"$f":"IFERROR(Nodokļi[[#This Row],[Current Period]]/SUBTOTAL(109,IenākumiNoPārdošanas[Current Period]),0)","v":0},{"$f":"IFERROR(Nodokļi[[#This Row],[Current Period]]/Nodokļi[[#This Row],[Iepriekšējais periods]]-1,0)","v":0},{"$f":"IFERROR(Nodokļi[[#This Row],[Current Period]]/Nodokļi[[#This Row],[Budžets]]-1,0)","v":0}]
[null,"Kopā",null,{"$f":"SUBTOTAL(109,Nodokļi[Iepriekšējais periods])","v":0},{"$f":"SUBTOTAL(109,Nodokļi[Budžets])","v":32},{"$f":"SUBTOTAL(109,Nodokļi[Current Period])","v":30},null,{"$f":"IFERROR(Nodokļi[[#Totals],[Current Period]]/SUBTOTAL(109,IenākumiNoPārdošanas[Current Period]),0)","v":{"v":0.6666666666666666,"d":"66.7%"}},{"$f":"IFERROR(Nodokļi[[#Totals],[Current Period]]/Nodokļi[[#Totals],[Iepriekšējais periods]]-1,0)","v":0},{"$f":"IFERROR(Nodokļi[[#Totals],[Current Period]]/Nodokļi[[#Totals],[Budžets]]-1,0)","v":{"v":-0.0625,"d":"-6.3%"}}]
[]
[null,"Tīrā peļņa",null,{"$f":"D47+D49-Nodokļi[[#Totals],[Iepriekšējais periods]]","v":40},{"$f":"E47+E49-Nodokļi[[#Totals],[Iepriekšējais periods]]","v":-45},{"$f":"F47+F49-Nodokļi[[#Totals],[Iepriekšējais periods]]","v":-32},null,{"$f":"IFERROR(F58/SUBTOTAL(109,IenākumiNoPārdošanas[Current Period]),0)","v":{"v":-0.7111111111111111,"d":"-71.1%"}},{"$f":"IFERROR(IF(D58=F58,0,IF(F58>D58,ABS((F58/D58)-1),IF(AND(F58<D58,D58<0),-((F58/D58)-1),(F58/D58)-1))),0)","v":{"v":-1.8,"d":"-180.0%"}},{"$f":"IFERROR(IF(E58=F58,0,IF(F58>E58,ABS((F58/E58)-1),IF(AND(F58<E58,E58<0),-((F58/E58)-1),(F58/E58)-1))),0)","v":{"v":0.28888888888888886,"d":"28.9%"}}]
[null,"Bruto peļņa",null,{"$f":"D18/SUM(IenākumiNoPārdošanas[Iepriekšējais periods])","v":{"v":1,"d":"100.0%"}},{"$f":"E18/SUM(IenākumiNoPārdošanas[Budžets])","v":{"v":0.86,"d":"86.0%"}},{"$f":"F18/SUM(IenākumiNoPārdošanas[Current Period])","v":{"v":0.8444444444444444,"d":"84.4%"}}]
[null,"Peļņa no pārdošanas",null,{"$f":"D58/SUM(IenākumiNoPārdošanas[Iepriekšējais periods])","v":{"v":1,"d":"100.0%"}},{"$f":"E58/SUM(IenākumiNoPārdošanas[Budžets])","v":{"v":-0.9,"d":"-90.0%"}},{"$f":"F58/SUM(IenākumiNoPārdošanas[Current Period])","v":{"v":-0.7111111111111111,"d":"-71.1%"}}]